bitfinex/quotes_ETHUSD_20241120
["timestamp","ask_amount","ask_price","bid_price","bid_amount"]
[1732136664333,3.25233,3074.8,3074.3,3.25271]
[1732136664738,3.2522,3074.9,3074.5,0.8097]
[1732136665042,3.25203,3075.0,3074.5,0.8097]
[1732136665043,3.25224,3074.8,3074.5,0.8097]
[1732136665200,3.25224,3074.8,3074.3,3.25271]
[1732136666013,3.25263,3074.5,3074.2,0.8097]
[1732136667215,0.8186,3074.6,3074.2,0.8097]
[1732136667802,0.8186,3074.6,3073.9,3.2531]
[1732136667803,0.8186,3074.6,3073.9,0.8146]
[1732136668007,3.25282,3074.3,3073.9,0.8146]
[1732136668447,3.25292,3074.2,3073.9,0.8146]
[1732136669156,3.25306,3074.1,3073.9,0.8146]
[1732136669512,3.25206,3075.0,3073.6,0.8081]
[1732136669513,6.22158271,3074.4,3073.6,0.8081]
[1732136669814,3.2533,3073.8,3073.6,0.8081]
[1732136670043,0.7856,3074.1,3073.6,0.8081]
[1732136670044,4.03865,3074.1,3073.6,0.8081]
[1732136670236,3.25305,3074.1,3073.6,1.214275]
[1732136670546,4.0458,3074.3,3073.6,1.214275]
[1732136670547,3.25311,3074.0,3073.6,1.214275]
[1732136670751,3.25311,3074.0,3073.6,0.8081]
[1732136671123,0.793,3074.8,3073.7,0.753]
[1732136671330,3.25234,3074.7,3073.8,3.25324]
[1732136671645,3.2527,3074.4,3073.8,3.25324]
[1732136672454,3.2527,3074.4,3073.7,0.753]
[1732136672455,3.25326,3073.9,3073.3,0.753]
[1732136672845,0.793,3074.3,3073.3,0.753]
[1732136673015,3.25352,3073.6,3073.3,0.753]
[1732136674031,4.0463,3073.8,3073.3,0.753]
[1732136674357,4.04615,3074.0,3073.3,0.753]
[1732136674683,3.25342,3073.7,3073.3,0.753]
[1732136674979,3.25342,3073.7,3073.3,1.153699]
[1732136675530,0.793,3074.0,3073.3,1.153699]
[1732136675757,3.25333,3073.8,3073.3,4.407509]
[1732136675969,3.25395,3073.2,3072.9,0.753]
[1732136676273,3.254,3073.2,3072.9,0.753]
[1732136676437,3.25406,3073.1,3072.9,0.753]
[1732136676635,3.25406,3073.1,3072.4,4.00768]
[1732136676865,3.25424,3073.0,3072.5,1.636251]
[1732136677062,3.25423,3073.0,3072.5,1.636251]
[1732136677565,3.25423,3073.0,3072.5,0.726251]
[1732136677866,7.01560271,3073.5,3072.5,0.726251]
[1732136677867,3.25425,3072.9,3072.5,0.726251]
[1732136678069,0.70156027,3073.4,3072.4,0.753]
[1732136678283,3.2543,3072.9,3072.4,0.753]
[1732136678993,3.25442,3072.8,3072.4,0.753]
[1732136679145,3.25448,3072.7,3072.4,0.753]
[1732136679349,3.2545,3072.7,3072.4,1.453796]
[1732136679645,3.25426,3072.9,3072.4,1.453796]
[1732136681673,0.793,3073.0,3072.5,3.25466]
[1732136682249,4.04716,3073.0,3072.5,3.25466]
[1732136682455,3.25406,3073.1,3072.5,3.25461]
[1732136682665,3.25406,3073.1,3072.5,3.25458]
[1732136683164,3.25406,3073.1,3072.6,3.25454]
[1732136686955,4.03885,3073.5,3072.8,3.25426]
[1732136687277,3.25397,3073.2,3072.7,0.8315]
[1732136687475,6.50753,3073.4,3072.7,4.08589]
[1732136687797,6.50753,3073.4,3072.7,1.27302756]
[1732136688092,6.50753,3073.4,3072.8,3.25435]
[1732136688403,3.25395,3073.2,3072.7,1.27302756]
[1732136688552,3.25395,3073.2,3072.7,0.8315]
[1732136689254,3.25395,3073.2,3072.7,4.08591]
[1732136689456,3.25395,3073.2,3072.7,0.8315]
[1732136689652,3.25414,3073.1,3072.7,0.8315]
[1732136690483,3.75412271,3073.5,3072.7,4.08593]
[1732136690484,3.25389,3073.3,3072.7,4.08593]
[1732136690704,6.50758,3073.4,3072.7,4.08587]
[1732136691006,3.25378,3073.4,3072.8,3.25435]
[1732136691167,0.7852,3073.5,3072.9,3.25424]
[1732136691356,4.03883,3073.5,3073.0,3.25411]
[1732136691554,0.7852,3073.5,3072.7,0.8315]
[1732136691861,0.8028,3073.7,3073.2,4.0671]
[1732136692299,3.25329,3073.9,3073.2,4.06707]
[1732136692300,7.30936,3073.9,3073.2,4.06707]
[1732136692456,3.25336,3073.8,3073.2,4.06707]
[1732136693093,4.787006,3073.9,3073.3,3.25376]
[1732136693268,3.2534,3073.8,3073.3,3.25376]
[1732136693480,4.787006,3073.9,3073.3,3.25376]
[1732136693884,3.2533,3073.8,3073.3,3.25376]
[1732136694679,1.533736,3073.9,3073.3,3.25376]
[1732136694879,4.786986,3073.9,3073.3,3.25376]
[1732136695201,3.25332,3073.8,3073.3,3.25376]
[1732136695412,1.533736,3073.9,3073.3,3.25376]
[1732136695698,1.533736,3073.9,3073.4,3.25366]
[1732136695880,1.533736,3073.9,3073.5,3.2536]
[1732136696075,0.8028,3073.9,3073.5,3.2536]
[1732136696502,0.8028,3074.2,3073.6,3.25345]
[1732136696707,4.05568,3074.2,3073.6,3.25345]
[1732136697024,5.08342127,3074.2,3073.6,3.25344]
[1732136697324,0.8028,3074.2,3073.6,0.8132]
[1732136697615,0.8028,3074.5,3074.0,3.25308]
[1732136697825,1.50522527,3074.5,3074.0,3.25308]
[1732136698175,3.25303,3074.1,3073.7,0.8132]
[1732136698379,2.96892271,3074.3,3073.7,0.8132]
[1732136698594,3.25288,3074.2,3073.7,4.06652]
[1732136698807,3.578168,3074.2,3073.7,4.06652]
[1732136699328,0.325288,3074.2,3073.7,7.31986]
[1732136699632,0.8028,3074.5,3073.7,0.8132]
[1732136699823,0.8028,3074.5,3074.0,3.25302]
[1732136699824,4.05536,3074.5,3074.0,3.25302]
[1732136700007,4.786137,3074.5,3074.0,3.25302]
[1732136700218,1.533577,3074.5,3074.1,3.25295]
[1732136700397,4.786167,3074.5,3073.9,3.25311]
[1732136700597,3.25277,3074.3,3073.8,3.25329]
[1732136700931,0.84922947,3074.3,3073.9,3.25309]
[1732136701300,0.84922947,3074.3,3074.0,3.25306]
[1732136701613,0.84922947,3074.3,3073.8,3.25323]
[1732136701815,0.84922947,3074.3,3074.0,3.25307]
[1732136702222,4.05537,3074.5,3074.0,3.25307]
[1732136704815,3.25294,3074.2,3073.6,3.25343]
[1732136705108,3.25294,3074.2,3073.7,3.25338]
[1732136706353,3.25294,3074.2,3073.5,4.05221]
[1732136706521,3.25266,3074.4,3073.1,3.25403]
[1732136706522,3.25327,3073.9,3073.2,3.25383]
[1732136706727,3.25327,3073.9,3073.3,3.25381]
[1732136707109,0.8081,3074.1,3073.3,3.25381]
[1732136707110,4.06113,3074.1,3073.3,3.25381]
[1732136707456,0.406113,3074.0,3073.5,3.25356]
[1732136707763,0.406113,3074.0,3073.3,3.25381]
[1732136707940,3.2533,3073.8,3073.3,3.25381]
[1732136708138,2.96892271,3073.9,3073.1,0.7986]
[1732136708365,3.25379,3073.4,3072.8,4.02549]
[1732136708513,0.8332,3073.3,3072.8,4.02549]
[1732136709015,3.58682082,3074.0,3072.8,4.02549]
[1732136709016,6.25336,3073.8,3073.2,3.25385]
[1732136709240,3.25348,3073.7,3073.0,6.50813]
[1732136709446,3.25357,3073.6,3073.1,3.25402]
[1732136709637,6.25336,3073.8,3073.2,0.7712]
[1732136709828,3.0,3073.8,3073.3,3.25374]
[1732136710244,3.0,3073.8,3073.2,0.7712]
[1732136710245,3.25342,3073.7,3073.2,4.02513]
[1732136710460,3.25347,3073.7,3073.2,0.7712]
[1732136710811,3.25347,3073.7,3073.2,4.0251]
[1732136711531,3.25364,3073.5,3072.9,4.05968]
[1732136711734,3.25347,3073.7,3072.9,0.8055]
[1732136712257,3.25347,3073.7,3073.1,3.25398]
[1732136712258,6.50696,3073.7,3073.1,3.25398]
[1732136712452,3.25347,3073.7,3073.2,3.25393]
[1732136713020,3.25332,3073.8,3073.2,3.25385]
[1732136713218,0.70553827,3073.8,3073.2,3.25385]
[1732136713566,3.2534,3073.7,3073.2,3.25385]
[1732136714319,3.2534,3073.7,3073.0,3.25404]
[1732136714514,3.2534,3073.7,3073.1,3.25398]
[1732136714515,7.6083121,3073.7,3073.1,3.25398]
[1732136714871,4.08646,3073.9,3073.3,3.25381]
[1732136715165,0.8332,3073.9,3073.4,0.7694]
[1732136715364,4.0864,3073.9,3073.4,0.7694]
[1732136715664,0.8332,3073.9,3073.6,3.25345]
[1732136715833,0.8332,3073.9,3073.5,3.25356]
[1732136715834,0.82,3074.1,3073.7,3.25333]
[1732136716049,6.25266,3074.4,3073.4,0.7694]
[1732136716050,4.07267,3074.4,3073.9,3.25312]
[1732136716788,4.07267,3074.4,3073.8,4.02269]
[1732136716990,4.479937,3074.4,3073.8,4.02259]
[1732136717134,4.479937,3074.4,3073.8,0.7694]
[1732136717337,3.25304,3074.1,3073.6,4.02283]
[1732136717867,3.25304,3074.1,3073.6,7.27627]
[1732136718161,3.25304,3074.1,3073.6,4.02283]
[1732136718568,3.25304,3074.1,3073.7,3.2534]
[1732136718881,3.78822271,3074.2,3073.3,0.7814]
[1732136719174,3.25319,3073.9,3073.4,3.25365]
[1732136720186,3.25324,3073.9,3073.4,3.25365]
[1732136720397,3.0,3074.4,3073.3,4.03523]
[1732136720398,4.07266,3073.8,3073.3,4.03523]
[1732136720560,0.8193,3073.8,3073.3,4.03523]
[1732136720739,0.8193,3073.8,3073.3,0.7814]
[1732136720941,4.0726,3073.8,3073.3,4.03517]
[1732136723611,0.8193,3073.8,3073.5,3.25358]
[1732136723816,4.07584,3074.0,3073.5,3.25358]
[1732136724725,3.2533,3073.8,3073.3,4.03517]
[1732136725075,3.25348,3073.7,3073.1,7.31223]
[1732136725283,3.25348,3073.7,3073.2,3.25387]
[1732136728911,3.25348,3073.7,3073.2,6.50774]
[1732136729344,3.25348,3073.7,3073.3,3.25382]
[1732136729931,3.25305,3074.1,3073.5,3.25352]
[1732136730113,0.7742,3074.2,3073.6,0.8213]
[1732136730114,3.25328,3073.9,3073.6,0.8213]
[1732136730315,4.03493,3073.7,3073.1,3.25394]
[1732136730535,4.03493,3073.7,3073.3,3.25381]
[1732136730536,0.7815,3073.7,3073.3,3.25381]
[1732136730723,0.7815,3073.7,3073.1,6.5079]
[1732136730724,4.03493,3073.7,3073.1,6.5079]
[1732136730906,4.03493,3073.7,3073.1,3.9859]
[1732136731254,4.03493,3073.7,3073.1,7.23987]
[1732136731408,0.7815,3073.7,3073.1,3.98594]
[1732136731612,3.25351,3073.6,3073.1,3.25398]
[1732136732301,0.7815,3073.7,3073.2,3.25391]
[1732136732507,3.25378,3073.4,3073.0,0.8117]
[1732136732758,0.8256,3073.3,3072.7,0.8304]
[1732136733052,0.8256,3073.3,3072.3,0.41837517]
[1732136733053,3.25421,3073.0,3072.5,0.8304]
[1732136733218,3.25421,3073.0,3072.5,1.39674752]
[1732136733402,0.8256,3072.8,3071.6,1.35581167]
[1732136733619,1.37062669,3071.8,3071.3,0.8304]
[1732136733811,1.37062669,3071.8,3070.6,1.35581167]
[1732136733812,2.32774098,3071.7,3071.1,3.25612]
[1732136734110,2.32774098,3071.7,3071.2,3.25605]
[1732136734111,1.20582218,3071.7,3071.2,3.25605]
[1732136734302,0.8256,3071.9,3071.3,3.581475]
[1732136734547,4.08091,3071.9,3071.3,0.325605]
[1732136734755,3.25543,3071.8,3071.3,0.325605]
[1732136734922,3.25553,3071.7,3071.0,3.25624]
[1732136735254,0.8256,3071.9,3071.3,0.7541]
[1732136735255,4.08092,3071.9,3071.3,0.7541]
[1732136735451,4.08092,3071.9,3071.4,0.401015]
[1732136735755,3.2557,3071.6,3070.9,0.7541]
[1732136736047,3.25574,3071.5,3070.9,0.7541]
[1732136736256,3.25557,3071.7,3071.0,3.982929]
[1732136737139,3.25557,3071.7,3071.1,3.25606]
[1732136737334,4.08093,3071.9,3071.2,3.25603]
[1732136737559,3.25551,3071.8,3071.2,3.25603]
[1732136737747,0.8256,3071.9,3070.9,0.7541]
[1732136738069,3.25574,3071.5,3070.9,4.01044]
[1732136738277,3.25574,3071.5,3070.9,0.7541]
[1732136738567,0.7723,3071.7,3070.5,0.8246]
[1732136738863,3.25647,3070.9,3070.5,0.8246]
[1732136739164,3.25658,3070.7,3070.1,4.08181]
[1732136739389,3.25675,3070.6,3070.1,0.8246]
[1732136739543,3.25658,3070.7,3070.1,1.232796]
[1732136739544,3.25688,3070.5,3070.1,1.232796]
[1732136739741,3.25693,3070.4,3070.1,0.8246]
[1732136739925,3.25693,3070.4,3069.8,3.88055437]
[1732136739926,3.25708,3070.3,3069.8,1.44768437]
[1732136740648,3.25724,3070.1,3069.8,1.44768437]
[1732136740852,3.25724,3070.1,3069.8,0.8246]
[1732136741262,3.25749,3069.9,3069.5,0.33919429]
[1732136741476,3.25749,3069.9,3069.1,3.25818]
[1732136741477,3.25771,3069.7,3069.1,3.25818]
[1732136741640,3.25771,3069.7,3069.0,4.03601]
[1732136741829,3.25776,3069.6,3069.0,0.7777]
[1732136742335,3.25786,3069.5,3069.0,0.7777]
[1732136742714,3.25782,3069.6,3069.0,0.7777]
[1732136743764,4.0554,3069.8,3069.0,1.181317]
[1732136743936,4.0554,3069.8,3069.1,3.25821]
[1732136744127,4.0554,3069.8,3069.0,1.181317]
[1732136744341,4.0554,3069.8,3069.2,3.25817]
[1732136744516,3.25747,3069.9,3069.3,3.25805]
[1732136744717,3.25747,3069.9,3069.0,4.03606]
[1732136744958,3.25754,3069.8,3069.2,3.25817]
[1732136745166,3.25747,3069.9,3069.1,0.403606]
[1732136745360,4.05309,3069.5,3068.8,3.25856]
[1732136745544,3.258,3069.4,3068.6,4.08434]
[1732136745747,0.7952,3069.5,3068.6,4.492774]
[1732136745952,4.05313,3069.5,3068.8,3.25853]
[1732136746121,3.25797,3069.4,3068.8,3.25853]
[1732136746325,0.7952,3069.5,3068.8,3.25853]
[1732136746529,4.05314,3069.5,3068.8,3.25853]
[1732136746859,4.05314,3069.5,3068.9,3.25846]
[1732136747022,0.7952,3069.5,3068.8,4.0336964]
[1732136747223,0.7952,3069.5,3068.8,3.25856]
[1732136747451,0.7952,3069.5,3069.0,3.2583]
[1732136747657,4.05306,3069.5,3069.0,3.2583]
[1732136747970,0.7952,3069.5,3069.0,3.2583]
[1732136749047,0.7952,3069.5,3068.8,3.25856]
[1732136749257,4.05314,3069.5,3068.9,0.325856]
[1732136749723,3.25758,3069.8,3069.0,3.25837]
[1732136749933,3.25772,3069.7,3069.0,3.25837]
[1732136750135,3.25772,3069.7,3069.1,3.25828]
[1732136750451,3.25765,3069.7,3069.2,3.25817]
[1732136750779,3.25765,3069.7,3069.0,7.2042267]
[1732136750982,3.25775,3069.6,3069.0,3.9458567]
[1732136751572,1.90140015,3069.6,3069.1,0.39458567]
[1732136751778,3.25758,3069.8,3069.1,0.39458567]
[1732136752076,3.25764,3069.7,3069.2,3.25816]
[1732136752281,3.25758,3069.8,3069.1,0.39458567]
[1732136752438,3.25758,3069.8,3069.2,4.41009057]
[1732136752638,3.25765,3069.7,3069.2,4.41009057]
[1732136752881,3.25785,3069.6,3069.2,0.7867]
[1732136753087,0.8144,3069.9,3069.2,0.7867]
[1732136753379,3.25857,3068.9,3068.5,0.7867]
[1732136753536,3.25857,3068.9,3068.3,0.9]
[1732136753537,3.25871,3068.7,3068.3,0.9]
[1732136753753,3.25887,3068.6,3068.3,0.9]
[1732136753946,3.2587,3068.7,3067.6,4.04653]
[1732136754180,3.25921,3068.3,3067.7,3.664403]
[1732136754384,3.25912,3068.4,3067.8,3.25966]
[1732136754584,3.2592,3068.3,3067.8,0.4451103]
[1732136755161,3.25904,3068.4,3067.8,0.4451103]
[1732136755493,7.04988369,3068.8,3067.9,0.41095133]
[1732136755690,3.25909,3068.4,3067.9,0.41095133]
[1732136756457,3.25909,3068.4,3067.9,3.67050133]
[1732136756686,3.25909,3068.4,3067.7,3.25968]
[1732136756954,3.25887,3068.6,3067.7,3.25968]
[1732136756955,3.25913,3068.3,3067.7,3.25968]
[1732136757301,3.25914,3068.3,3067.8,3.664298]
[1732136757445,3.25893,3068.5,3067.8,3.25966]
[1732136758546,3.2591,3068.4,3067.8,3.25966]
[1732136759066,3.25928,3068.2,3067.6,4.04654]
[1732136759267,3.2594,3068.1,3067.7,0.404654]
[1732136759577,3.25874,3068.7,3067.7,0.404654]
[1732136759578,3.25922,3068.3,3067.7,0.404654]
[1732136759769,3.25922,3068.3,3067.6,4.0465]
[1732136759962,4.07728,3068.2,3067.3,3.26013]
[1732136760152,3.25955,3068.0,3067.5,3.25997]
[1732136760348,3.25955,3068.0,3067.6,0.325997]
[1732136761481,4.07728,3068.2,3067.6,0.325997]
[1732136761691,2.97324369,3068.5,3067.8,3.25959]
[1732136761692,3.2592,3068.3,3067.8,3.25959]
[1732136762209,3.25926,3068.2,3067.7,0.7867]
[1732136762415,0.818,3068.5,3067.8,0.404653]
[1732136762574,3.25929,3068.2,3067.4,3.26008]
[1732136762910,3.25946,3068.0,3067.5,3.585978]
[1732136763121,3.25946,3068.0,3067.5,0.326008]
[1732136763424,3.25929,3068.2,3067.6,3.2598]
[1732136763719,3.25929,3068.2,3067.7,3.25975]
[1732136763924,0.818,3068.5,3067.8,0.8317]
[1732136764073,3.2591,3068.4,3067.8,0.8317]
[1732136764272,3.2591,3068.4,3067.8,4.0913]
[1732136765281,4.07692,3068.5,3068.0,3.25944]
[1732136765581,0.8151,3068.8,3068.0,0.409114]
[1732136765811,3.2585,3068.9,3068.1,3.25928]
[1732136766125,0.8151,3069.1,3068.4,4.03545]
[1732136766126,4.07344,3069.1,3068.4,4.03545]
[1732136766640,3.2585,3068.9,3068.4,4.03545]
[1732136767622,3.25819,3069.2,3068.6,3.25875]
[1732136768026,3.25831,3069.1,3068.6,3.25875]
[1732136768240,3.25819,3069.2,3068.5,3.662435]
[1732136768241,3.25817,3069.2,3068.5,3.662435]
[1732136768539,3.25817,3069.2,3068.5,0.403545]
[1732136768540,3.25845,3069.0,3068.5,0.403545]
[1732136768950,3.25845,3069.0,3068.5,3.662465]
[1732136769110,6.51642,3069.2,3068.6,4.0285925]
[1732136769318,3.25817,3069.2,3068.7,3.25867]
[1732136769624,3.258,3069.4,3068.8,3.25852]
[1732136770424,0.8126,3069.7,3069.0,4.03771]
[1732136770623,3.2576,3069.8,3069.1,3.662041]
[1732136770950,3.25772,3069.7,3069.1,3.25827]
[1732136771098,3.2576,3069.8,3069.2,3.25817]
[1732136771293,4.06997,3070.0,3069.1,0.403771]
[1732136771559,3.25763,3069.8,3069.1,3.25828]
[1732136772572,3.25749,3069.9,3069.3,3.25798]
[1732136772738,3.25749,3069.9,3069.4,0.325798]
[1732136772942,3.25749,3069.9,3069.0,0.7794]
[1732136772943,3.25785,3069.6,3069.0,4.03778]
[1732136773175,3.25792,3069.5,3069.0,4.03778]
[1732136773793,3.25767,3069.7,3069.0,4.03778]
[1732136774131,3.25767,3069.7,3069.1,3.25827]
[1732136774330,3.25775,3069.6,3069.1,3.25827]
[1732136774569,3.25775,3069.6,3069.0,1.183178]
[1732136774570,3.25748,3069.9,3069.2,3.25815]
[1732136775096,3.25748,3069.9,3069.4,3.25794]
[1732136775286,3.25725,3070.1,3069.5,3.25776]
[1732136775432,4.07956,3070.3,3069.7,3.25758]
[1732136775770,4.07956,3070.3,3069.6,3.25768]
[1732136775771,3.25718,3070.2,3069.6,3.25768]
[1732136776084,3.25718,3070.2,3069.7,3.25764]
[1732136776624,3.25718,3070.2,3069.6,0.403418]
[1732136776625,3.25724,3070.1,3069.6,0.403418]
[1732136776825,3.25735,3070.0,3069.6,0.403418]
[1732136777065,3.25749,3069.9,3069.6,0.403418]
[1732136777380,3.25749,3069.9,3069.5,0.7765]
[1732136777584,0.8225,3070.3,3069.5,4.03434]
[1732136777585,3.25722,3070.1,3069.5,4.03434]
[1732136778072,3.25706,3070.3,3069.5,4.03428]
[1732136778390,2.97324369,3070.9,3070.1,3.25716]
[1732136778391,0.803,3070.6,3070.1,3.25716]
[1732136778574,3.25665,3070.7,3070.2,0.325716]
[1732136778773,3.25665,3070.7,3070.1,7.32827]
[1732136778943,3.25665,3070.7,3070.1,4.07112]
[1732136779276,4.03967,3070.9,3070.3,3.25695]
[1732136779477,3.25649,3070.8,3070.3,3.25695]
[1732136779986,3.25631,3071.0,3070.3,3.989757]
[1732136780550,3.25631,3071.0,3070.5,3.25678]
[1732136780685,4.03936,3071.2,3070.5,3.25678]
[1732136780883,1.65991323,3071.2,3070.1,4.07116]
[1732136781088,1.65991323,3071.2,3070.1,0.814]
[1732136781089,3.25665,3070.7,3070.1,0.814]
[1732136781390,3.25685,3070.5,3070.1,0.814]
[1732136781592,3.25696,3070.4,3069.8,0.8319]
[1732136781839,3.25696,3070.4,3069.4,6.2579]
[1732136781840,3.2575,3069.9,3069.5,0.8319]
[1732136782050,0.8148,3070.0,3069.0,1.33910396]
[1732136782051,4.07217,3070.0,3069.0,1.33910396]
[1732136782191,3.25783,3069.6,3069.1,1.0]
[1732136782558,4.07193,3070.2,3069.5,3.25779]
[1732136782836,3.2566,3070.7,3069.5,3.25779]
[1732136782837,3.25684,3070.5,3069.8,3.25748]
[1732136783013,3.25684,3070.5,3069.7,3.25763]
[1732136783014,3.25705,3070.3,3069.9,0.7589]
[1732136783334,3.25684,3070.5,3069.9,4.0163]
[1732136783648,3.25684,3070.5,3070.0,3.25732]
[1732136783803,3.25693,3070.4,3069.9,4.0163]
[1732136784027,0.8226,3070.8,3070.1,3.25715]
[1732136784334,3.25661,3070.7,3070.1,3.25715]
[1732136784540,3.25674,3070.6,3070.1,3.25715]
[1732136784734,3.25674,3070.6,3070.0,3.2573]
[1732136784902,3.25674,3070.6,3070.0,3.699091]
[1732136785365,3.25674,3070.6,3070.1,3.25719]
[1732136785649,3.72910723,3070.9,3070.2,3.2571]
[1732136785650,3.25643,3070.9,3070.2,3.2571]
[1732136785850,3.25643,3070.9,3070.3,4.07574]
[1732136786152,3.25656,3070.8,3070.3,0.8188]
[1732136786305,3.2566,3070.7,3070.3,0.8188]
[1732136788107,6.51287,3070.9,3070.3,0.8188]
[1732136788328,3.25649,3070.8,3070.3,0.8188]
[1732136788646,3.25687,3070.5,3070.3,0.8188]
[1732136788868,3.25687,3070.5,3070.0,0.8188]
[1732136789031,3.25695,3070.4,3070.0,0.8188]
[1732136789225,3.25674,3070.6,3070.0,4.07605]
[1732136789429,3.25674,3070.6,3070.1,0.407605]
[1732136790508,0.7746,3071.1,3070.0,0.8188]
[1732136790509,3.25701,3070.3,3070.0,0.8188]
[1732136791061,3.25714,3070.2,3070.0,0.8188]
[1732136791756,3.25698,3070.4,3070.0,0.8188]
[1732136791940,3.25701,3070.3,3070.0,0.8188]
[1732136792162,3.25701,3070.3,3069.7,0.7594]
[1732136792317,3.25713,3070.2,3069.7,0.7594]
[1732136792671,3.25707,3070.3,3069.7,4.4187]
[1732136793015,3.25724,3070.1,3069.7,1.16112]
[1732136793535,3.25714,3070.2,3069.7,4.41875]
[1732136793848,3.25714,3070.2,3069.8,0.441875]
[1732136794206,3.25698,3070.4,3069.8,0.441875]
[1732136794404,3.25669,3070.6,3069.8,3.699405]
[1732136794661,3.25682,3070.5,3070.0,0.808]
[1732136794813,3.25688,3070.5,3070.0,0.808]
[1732136795235,3.25655,3070.8,3070.0,0.808]
[1732136795394,3.25655,3070.8,3070.1,0.37812437]
[1732136796392,0.7893,3071.0,3070.1,0.37812437]
[1732136796393,6.51354,3070.6,3070.1,0.37812437]
[1732136796593,3.25651,3070.8,3070.1,3.63532437]
[1732136796945,3.25691,3070.4,3070.0,0.808]
[1732136797370,3.25637,3070.9,3070.0,0.808]
[1732136797371,3.2569,3070.5,3070.0,0.808]
[1732136797948,3.25696,3070.4,3070.0,0.808]
[1732136798256,3.25704,3070.3,3070.0,0.808]
[1732136799207,3.25704,3070.3,3069.6,0.7674]
[1732136799208,3.25722,3070.1,3069.6,0.7674]
[1732136799516,0.651389,3070.3,3069.6,0.7674]
[1732136799517,3.25764,3069.7,3069.6,0.7674]
[1732136799713,3.25764,3069.7,3069.2,0.7674]
[1732136799999,3.25754,3069.8,3069.2,1.09322]
[1732136800229,3.25754,3069.8,3069.3,3.25801]
[1732136800503,3.25734,3070.0,3069.3,6.51597]
[1732136800712,3.25734,3070.0,3069.3,4.018879]
[1732136800713,3.25752,3069.9,3069.3,4.018879]
[1732136801576,3.25765,3069.7,3069.3,0.760919]
[1732136801922,3.25781,3069.6,3069.2,0.7674]
[1732136803419,3.25739,3070.0,3069.2,4.02557]
[1732136803704,3.25715,3070.2,3069.2,4.02557]
[1732136803705,3.25764,3069.8,3069.2,4.428127]
[1732136803914,3.25764,3069.8,3069.2,1.169957]
[1732136804071,3.25776,3069.6,3069.2,1.169957]
[1732136804916,3.25764,3069.8,3069.2,4.428107]
[1732136804917,3.25767,3069.7,3069.2,4.428107]
[1732136805111,3.25762,3069.8,3069.2,4.428107]
[1732136805471,6.51524,3069.8,3069.2,4.428107]
[1732136805704,0.7773,3070.3,3069.3,3.7008407]
[1732136805705,3.25751,3069.9,3069.3,3.7008407]
[1732136806104,0.7773,3070.3,3069.3,3.7008407]
[1732136806105,3.25717,3070.2,3069.6,3.25769]
[1732136806306,3.25727,3070.1,3069.6,3.25769]
[1732136806529,3.25727,3070.1,3069.6,3.25768]
[1732136806700,3.25727,3070.1,3069.6,3.660908]
[1732136806899,3.25737,3070.0,3069.6,0.403228]
[1732136807844,3.72936723,3070.6,3069.3,0.8071]
[1732136807845,0.7763,3070.5,3069.3,0.8071]
[1732136808130,0.47267723,3070.1,3069.4,3.25796]
[1732136808288,3.25739,3070.0,3069.4,3.25796]
[1732136808489,6.51479,3070.0,3069.4,3.25796]
[1732136809289,3.25743,3069.9,3069.4,3.25795]
[1732136809496,3.25743,3069.9,3069.4,3.25794]
[1732136810149,0.47267723,3070.1,3069.4,0.732311]
[1732136810326,0.7763,3070.5,3069.3,0.8071]
[1732136810534,4.03317,3070.5,3069.8,3.25752]
[1732136810695,3.25681,3070.5,3070.0,3.25732]
[1732136810894,3.25685,3070.5,3069.9,0.7668]
[1732136811198,3.25685,3070.5,3069.9,1.169233]
[1732136811408,3.25685,3070.5,3070.0,3.25732]
[1732136811792,3.25685,3070.5,3070.1,3.25722]
[1732136811991,3.25685,3070.5,3069.9,1.169233]
[1732136811992,3.25658,3070.7,3070.2,3.25706]
[1732136812238,0.8292,3070.8,3070.3,3.257]
[1732136812239,4.08568,3070.8,3070.3,3.257]
[1732136812390,3.25638,3070.9,3070.4,4.34938]
[1732136812593,4.55810723,3071.1,3070.4,0.7668]
[1732136812594,3.25648,3070.8,3070.4,0.7668]
[1732136813037,3.25626,3071.0,3070.4,0.7668]
[1732136813394,1.30187723,3071.1,3070.4,0.7668]
[1732136813395,3.25659,3070.7,3070.4,0.7668]
[1732136813764,3.25659,3070.7,3070.2,3.25703]
[1732136813765,6.98551723,3070.9,3070.2,7.33065]
[1732136814083,6.98551723,3070.9,3070.3,3.25699]
[1732136814195,6.98551723,3070.9,3069.2,7.27343437]
[1732136814196,3.25676,3070.6,3070.0,3.25728]
[1732136814394,3.25686,3070.5,3070.0,3.25728]
[1732136815615,3.25659,3070.7,3070.1,3.25712]
[1732136815827,4.08399,3070.9,3070.3,3.25694]
[1732136816030,4.08399,3070.9,3070.4,0.7823]
[1732136816232,3.25622,3071.1,3070.5,3.25673]
[1732136816233,4.08942,3071.1,3070.5,3.25673]
[1732136816401,3.25628,3071.0,3070.5,3.25673]
[1732136816602,1.158822,3071.1,3070.6,3.25659]
[1732136816603,0.8332,3071.1,3070.6,3.25659]
[1732136816865,4.08943,3071.1,3070.6,3.25659]
[1732136817151,3.25623,3071.1,3070.6,3.25659]
[1732136817301,4.0892,3071.3,3070.7,3.25657]
[1732136817645,4.0892,3071.3,3070.6,3.25659]
[1732136817646,3.66492,3071.3,3070.8,3.25644]
[1732136817908,4.089,3071.5,3070.9,0.8083]
[1732136817909,3.25585,3071.4,3070.9,0.8083]